bitfinex/quotes_SOLUSD_20240614
["timestamp","ask_amount","ask_price","bid_price","bid_amount"]
[1718327912833,20.0,147.51,147.45,2.5092]
[1718327913010,6.1832,147.52,147.46,2.509]
[1718327913919,6.1832,147.52,147.43,2.5096]
[1718327914122,6.1832,147.52,147.4,5.0203]
[1718327914332,20.17,147.51,147.43,2.5096]
[1718327914501,20.17,147.51,147.4,5.0203]
[1718327914721,20.17,147.51,147.37,22.1977]
[1718327914937,0.17,147.5,147.4,2.5101]
[1718327915133,0.34,147.5,147.4,2.5101]
[1718327915324,20.17,147.51,147.37,22.1977]
[1718327915325,20.17,147.51,147.42,2.5097]
[1718327915508,20.0,147.51,147.43,2.5095]
[1718327916135,20.0,147.51,147.42,2.5097]
[1718327916304,20.0,147.51,147.43,2.5096]
[1718327916511,20.0,147.51,147.44,2.5094]
[1718327917122,20.0,147.51,147.41,0.51]
[1718327917326,20.0,147.51,147.43,2.5096]
[1718327918116,20.0,147.51,147.42,5.0196]
[1718327918320,20.0,147.51,147.44,2.5094]
[1718327918619,6.1832,147.52,147.46,2.5091]
[1718327919236,6.1832,147.52,147.44,2.5094]
[1718327919633,6.1832,147.52,147.45,0.17]
[1718327919845,6.1832,147.52,147.46,2.509]
[1718327920532,6.1832,147.52,147.47,2.5089]
[1718327920948,6.1832,147.52,147.46,2.509]
[1718327923861,6.1832,147.52,147.46,5.0182]
[1718327924064,6.1832,147.52,147.48,2.5087]
[1718327924480,6.1832,147.52,147.45,0.17]
[1718327924854,6.1832,147.52,147.45,2.6792]
[1718327925469,6.1832,147.52,147.44,2.5094]
[1718327925665,20.0,147.51,147.42,2.5096]
[1718327927076,20.0,147.51,147.43,2.5096]
[1718327927855,20.0,147.51,147.42,2.5097]
[1718327928594,20.0,147.51,147.4,2.5101]
[1718327928760,20.0,147.51,147.38,5.0208]
[1718327928761,0.34,147.5,147.41,2.5099]
[1718327929268,20.0,147.51,147.41,7.5298]
[1718327929473,20.0,147.51,147.39,20.35]
[1718327929474,20.0,147.51,147.4,10.0401]
[1718327929678,20.0,147.51,147.42,2.5098]
[1718327930066,20.0,147.51,147.43,2.5096]
[1718327930266,20.0,147.51,147.44,2.5094]
[1718327930486,20.0,147.51,147.43,2.5095]
[1718327930685,20.0,147.51,147.44,2.5094]
[1718327930855,20.0,147.51,147.43,2.5095]
[1718327932794,20.0,147.51,147.42,2.5097]
[1718327933296,20.0,147.51,147.43,2.5096]
[1718327935988,20.0,147.51,147.41,0.17]
[1718327936197,16.0895,147.5,147.4,2.85]
[1718327936394,20.0,147.49,147.4,2.85]
[1718327936895,20.0,147.49,147.41,2.5099]
[1718327937794,20.0,147.49,147.43,2.5095]
[1718327938184,20.0,147.49,147.42,2.5097]
[1718327939288,20.0,147.49,147.43,2.5096]
[1718327939963,16.0895,147.5,147.43,2.5096]
[1718327940182,16.0895,147.5,147.4,0.34]
[1718327940386,20.0,147.49,147.42,0.17]
[1718327941861,20.0,147.49,147.42,2.6798]
[1718327943002,20.0,147.49,147.42,0.17]
[1718327944767,20.0,147.49,147.42,2.6798]
[1718327945667,20.0,147.49,147.42,0.17]
[1718327946973,20.0,147.49,147.41,0.17]
[1718327947173,20.0,147.49,147.41,2.8498]
[1718327948778,16.0895,147.5,147.43,0.17]
[1718327948987,16.0895,147.5,147.45,2.5092]
[1718327949207,16.0895,147.5,147.46,2.5091]
[1718327949380,16.0895,147.5,147.47,0.67179176]
[1718327950091,16.0895,147.5,147.45,2.6792]
[1718327950297,16.0895,147.5,147.46,0.17]
[1718327950493,16.0895,147.5,147.45,0.17]
[1718327950690,16.0895,147.5,147.45,0.34]
[1718327950903,16.0895,147.5,147.46,2.509]
[1718327951200,16.0895,147.5,147.46,2.679]
[1718327951398,16.0895,147.5,147.45,2.8492]
[1718327951905,16.0895,147.5,147.45,0.34]
[1718327952503,16.0895,147.5,147.45,2.8493]
[1718327954108,16.0895,147.5,147.46,2.5091]
[1718327954983,16.0895,147.5,147.46,0.17]
[1718327955214,6.1832,147.52,147.49,2.5085]
[1718327955516,6.1832,147.52,147.47,12.7147]
[1718327955517,6.1832,147.52,147.5,2.5084]
[1718327955722,6.1832,147.52,147.48,0.17]
[1718327955723,6.1832,147.52,147.49,2.5085]
[1718327958889,15.3524,147.54,147.49,2.5085]
[1718327960018,15.3524,147.54,147.48,2.5087]
[1718327960199,15.3524,147.54,147.49,0.34]
[1718327962218,15.3524,147.54,147.49,2.8486]
[1718327962920,15.3524,147.54,147.49,0.34]
[1718327963311,15.3524,147.54,147.46,5.3581]
[1718327963312,15.3524,147.54,147.46,2.849]
[1718327963492,20.0,147.53,147.41,7.86272965]
[1718327963693,20.0,147.53,147.42,2.5097]
[1718327963887,20.0,147.53,147.45,2.5093]
[1718327964094,20.0,147.53,147.41,10.0399]
[1718327964331,15.9293,147.51,147.4,1.5693711]
[1718327964498,20.0,147.5,147.4,4.0793711]
[1718327964696,20.0,147.5,147.41,2.5099]
[1718327964918,7.73,147.48,147.42,7.73]
[1718327965342,7.73,147.48,147.43,7.73]
[1718327965838,7.73,147.49,147.43,7.73]
[1718327966921,20.0,147.5,147.41,2.5099]
[1718327968192,22.9772,147.49,147.4,1.5693711]
[1718327968399,22.9772,147.47,147.4,1.5693711]
[1718327968604,43.36,147.46,147.4,1.5693711]
[1718327968830,0.34,147.45,147.4,1.5693711]
[1718327971615,0.34,147.45,147.34,2.5111]
[1718327971926,0.34,147.45,147.33,0.17]
[1718327971927,0.34,147.45,147.35,2.8509]
[1718327972238,43.36,147.46,147.36,2.6807]
[1718327972408,43.19,147.46,147.36,2.6807]
[1718327972604,43.19,147.46,147.37,0.17]
[1718327972830,20.0,147.46,147.38,2.6803]
[1718327973444,20.0,147.46,147.36,2.6807]
[1718327973624,20.0,147.46,147.37,2.5106]
[1718327974239,20.0,147.46,147.38,0.17]
[1718327974547,20.0,147.46,147.38,2.6804]
[1718327974926,20.0,147.46,147.38,0.17]
[1718327975131,20.0,147.46,147.38,0.34]
[1718327975518,20.0,147.46,147.27,100.0]
[1718327975519,20.0,147.46,147.35,2.5109]
[1718327975717,20.0,147.46,147.34,2.5111]
[1718327975940,0.34,147.45,147.33,2.5112]
[1718327976145,0.34,147.45,147.32,0.8342732]
[1718327976443,0.34,147.45,147.35,2.5109]
[1718327976648,0.34,147.45,147.32,5.8570732]
[1718327976649,0.34,147.45,147.36,2.5108]
[1718327977547,0.34,147.45,147.34,0.17]
[1718327977717,23.21,147.43,147.32,3.3457732]
[1718327977921,20.17,147.42,147.32,3.3457732]
[1718327981351,0.17,147.42,147.32,3.3457732]
[1718327981731,0.34,147.42,147.32,3.3457732]
[1718327981966,0.34,147.42,147.33,2.5113]
[1718327982131,20.0,147.43,147.33,2.5113]
[1718327982530,20.0,147.43,147.35,0.17]
[1718327982755,20.0,147.43,147.35,0.34]
[1718327983063,20.0,147.43,147.35,2.8509]
[1718327983366,20.0,147.43,147.36,2.6808]
[1718327984468,22.7431,147.44,147.37,0.34]
[1718327984773,16.6644,147.44,147.38,2.6804]
[1718327984937,16.6644,147.44,147.38,0.17]
[1718327985261,16.6644,147.44,147.38,0.34]
[1718327985463,16.6644,147.44,147.38,0.17]
[1718327985661,16.6644,147.44,147.38,2.6804]
[1718327986254,16.6644,147.44,147.39,2.5103]
[1718327986437,16.6644,147.44,147.38,2.6804]
[1718327989379,21.6114,147.47,147.38,2.6804]
[1718327989577,20.0,147.46,147.38,2.6804]
[1718327992284,20.0,147.46,147.38,0.17]
[1718327992850,20.0,147.46,147.38,2.6805]
[1718327993652,20.0,147.46,147.39,2.5103]
[1718327993954,20.0,147.46,147.38,2.6804]
[1718327994867,7.73,147.44,147.39,7.73]
[1718327995280,7.73,147.44,147.38,0.17]
[1718327995589,7.73,147.44,147.39,7.73]
[1718327995762,7.73,147.44,147.4,45.0]
[1718327996266,20.0,147.46,147.4,45.0]
[1718327996466,7.73,147.44,147.4,45.0]
[1718327997881,7.73,147.45,147.4,45.0]
[1718328000210,7.73,147.45,147.4,47.51]
[1718328000390,21.7071,147.51,147.44,7.73]
[1718328000589,7.73,147.49,147.44,7.73]
[1718328001100,7.73,147.48,147.42,10.2397]
[1718328001303,21.7071,147.51,147.4,46.5693711]
[1718328001304,7.73,147.46,147.4,46.5693711]
[1718328001500,7.73,147.49,147.4,46.5693711]
[1718328001501,7.73,147.45,147.4,45.0]
[1718328001881,21.7071,147.51,147.41,10.4099]
[1718328002081,20.0,147.5,147.42,45.0]
[1718328002311,7.73,147.47,147.42,45.0]
[1718328002510,7.73,147.46,147.42,45.0]
[1718328002898,7.73,147.46,147.41,45.17]
[1718328003096,7.73,147.45,147.4,7.73]
[1718328003304,7.73,147.49,147.38,2.5104]
[1718328003495,7.73,147.44,147.38,10.2404]
[1718328004415,7.73,147.44,147.39,2.5103]
[1718328004600,7.73,147.44,147.39,55.2403]
[1718328004801,7.73,147.45,147.39,55.2403]
[1718328005725,7.73,147.45,147.4,7.73]
[1718328006100,20.51,147.48,147.39,45.0]
[1718328006416,20.51,147.48,147.32,22.3283732]
[1718328006417,7.73,147.4,147.32,22.3283732]
[1718328006624,7.73,147.42,147.33,7.73]
[1718328006804,7.73,147.38,147.32,0.8342732]
[1718328007118,7.73,147.37,147.32,0.8342732]
[1718328007322,7.73,147.36,147.32,0.8342732]
[1718328007927,15.888,147.4,147.32,8.5642732]
[1718328008109,7.73,147.38,147.32,0.8342732]
[1718328008317,15.888,147.4,147.32,0.8342732]
[1718328008318,27.73,147.37,147.32,0.8342732]
[1718328008815,27.73,147.37,147.32,3.3457732]
[1718328009029,7.73,147.38,147.32,3.3457732]
[1718328010231,15.888,147.4,147.32,3.3457732]
[1718328010232,7.73,147.39,147.32,3.3457732]
[1718328010397,7.73,147.38,147.32,3.3457732]
[1718328010800,7.73,147.38,147.32,0.8342732]
[1718328011795,7.73,147.39,147.32,3.3457732]
[1718328013713,7.73,147.38,147.32,0.8342732]
[1718328014322,6.3108,147.43,147.36,2.5108]
[1718328014529,6.3108,147.43,147.37,7.73]
[1718328014705,15.6511,147.44,147.38,47.5103]
[1718328014706,7.73,147.44,147.38,47.5103]
[1718328014910,15.6511,147.47,147.41,7.73]
[1718328015220,23.3811,147.47,147.41,7.73]
[1718328015627,7.73,147.46,147.39,2.6802]
[1718328015826,7.73,147.46,147.4,7.73]
[1718328016027,7.73,147.45,147.4,7.73]
[1718328016333,7.73,147.45,147.39,7.73]
[1718328016812,15.6511,147.47,147.38,45.0]
[1718328017237,15.6511,147.47,147.41,2.5098]
[1718328017407,16.5781,147.51,147.43,2.5095]
[1718328017838,6.0624,147.54,147.43,2.5095]
[1718328018539,6.0624,147.54,147.44,2.5094]
[1718328019813,20.0,147.53,147.44,2.5094]
[1718328020442,6.173,147.58,147.45,0.17]
[1718328020610,6.173,147.58,147.48,2.5087]
[1718328022248,65.51,147.57,147.45,47.6792]
[1718328022568,20.51,147.57,147.47,2.5088]
[1718328022906,20.51,147.57,147.48,2.5088]
[1718328023136,20.17,147.57,147.46,0.68]
[1718328023336,20.0,147.57,147.46,45.68]
[1718328023543,20.0,147.57,147.48,2.5087]
[1718328024537,20.0,147.57,147.47,2.5089]
[1718328024755,20.0,147.57,147.48,0.34]
[1718328025248,100.0,147.56,147.4,44.89558293]
[1718328025451,20.17,147.55,147.41,7.5299]
[1718328025732,20.0,147.55,147.48,2.5087]
[1718328026238,20.0,147.57,147.47,2.5089]
[1718328027046,0.17,147.56,147.46,45.0]
[1718328027232,45.34,147.56,147.43,1.56905176]
[1718328027418,20.17,147.55,147.43,1.56905176]
[1718328027623,0.34,147.54,147.43,1.56905176]
[1718328027848,0.34,147.54,147.43,4.07865176]
[1718328028051,0.17,147.53,147.43,4.07865176]
[1718328028547,0.17,147.53,147.44,45.0]
[1718328028864,0.17,147.53,147.45,2.5092]
[1718328029021,0.17,147.54,147.47,2.5089]
[1718328029374,20.0,147.56,147.48,2.5087]
[1718328029562,20.0,147.56,147.47,2.5089]
[1718328029724,20.0,147.56,147.46,45.0]
[1718328029925,20.0,147.56,147.45,2.5092]
[1718328030138,20.0,147.56,147.44,45.34]
[1718328030139,16.2118,147.53,147.43,1.56905176]
[1718328030356,16.2118,147.53,147.42,22.2485]
[1718328030357,16.2118,147.53,147.42,24.7583]
[1718328030638,20.17,147.52,147.42,22.2485]
[1718328030861,20.0,147.52,147.43,2.5096]
[1718328031154,20.0,147.52,147.42,24.7582]
[1718328031459,6.8349,147.51,147.39,8.6938]
[1718328031677,23.2,147.48,147.35,6.605]
[1718328031956,20.34,147.47,147.35,2.5109]
[1718328032251,0.17,147.46,147.35,2.5109]
[1718328032745,0.17,147.46,147.34,15.8924]
[1718328032935,0.17,147.46,147.37,2.5105]
[1718328033547,0.17,147.46,147.38,2.5105]
[1718328033750,20.17,147.47,147.4,2.5101]
[1718328033950,20.0,147.47,147.4,2.5101]
[1718328034275,15.1842,147.49,147.35,23.2]
[1718328034276,20.0,147.48,147.35,23.2]
[1718328034567,0.34,147.47,147.36,45.34]
[1718328035573,0.34,147.47,147.38,2.5104]
[1718328036134,0.34,147.47,147.34,28.6181]
[1718328036135,100.0,147.43,147.32,0.8342732]
[1718328036639,20.17,147.42,147.33,2.5113]
[1718328036837,20.17,147.42,147.32,0.8342732]
[1718328036838,20.0,147.42,147.32,3.3456732]
[1718328037039,20.0,147.42,147.33,2.5113]
[1718328037275,20.0,147.45,147.33,2.5113]
[1718328037560,0.51,147.44,147.33,2.5113]
[1718328040179,20.0,147.45,147.34,0.34]
[1718328040375,20.0,147.45,147.36,2.6808]
[1718328040745,20.0,147.45,147.36,47.6808]
[1718328040939,20.0,147.45,147.36,45.17]
[1718328041143,21.6775,147.46,147.38,0.17]
[1718328041347,46.0795,147.5,147.4,2.5101]
[1718328041571,46.0795,147.5,147.39,2.5102]
[1718328041874,146.0795,147.5,147.38,0.17]
[1718328042069,23.2,147.47,147.35,6.3739]
[1718328042265,23.2,147.47,147.36,45.0]
[1718328042467,20.0,147.46,147.36,45.0]
[1718328042847,0.17,147.45,147.36,45.0]
[1718328043663,0.34,147.45,147.36,45.0]
[1718328048156,0.34,147.45,147.36,47.5108]
[1718328048484,23.2,147.51,147.37,5.3611]
[1718328048691,23.2,147.51,147.39,2.6802]
[1718328048979,23.2,147.51,147.38,45.17]
[1718328048980,23.2,147.48,147.38,45.0]
[1718328049584,20.0,147.47,147.38,45.0]
[1718328049975,0.34,147.46,147.38,45.0]
[1718328051285,100.34,147.46,147.34,2.5111]
[1718328051460,20.0,147.45,147.34,2.5111]
[1718328051659,0.34,147.44,147.34,2.5111]
[1718328051865,0.17,147.43,147.34,2.5111]
[1718328052058,0.17,147.43,147.35,2.5109]
[1718328052298,0.17,147.43,147.36,2.5108]
[1718328052791,20.0,147.45,147.37,2.5106]
[1718328053380,20.0,147.45,147.38,2.5105]
[1718328053990,0.34,147.46,147.38,2.5105]
[1718328054191,20.0,147.48,147.37,2.5105]
[1718328054411,0.51,147.47,147.37,2.5105]
[1718328054888,0.51,147.47,147.36,47.5108]
[1718328055077,45.51,147.47,147.36,45.0]
[1718328055386,20.0,147.46,147.36,45.0]
[1718328055578,0.34,147.45,147.36,45.0]
[1718328058092,0.34,147.45,147.36,47.5108]
[1718328058490,0.34,147.45,147.36,47.5107]
[1718328058988,0.34,147.45,147.36,45.0]
[1718328059503,22.5227,147.43,147.34,2.5111]
[1718328059676,22.5227,147.43,147.32,7.1195732]
[1718328059866,20.17,147.42,147.32,0.8342732]
[1718328060074,0.17,147.41,147.32,0.8342732]
[1718328060286,0.17,147.41,147.32,3.3457732]
[1718328060494,0.17,147.41,147.33,2.5113]
[1718328061612,0.17,147.41,147.32,45.8342732]
[1718328061817,0.17,147.41,147.32,0.8342732]
[1718328062107,45.17,147.41,147.32,0.8342732]
[1718328062415,6.0713,147.39,147.32,0.8342732]
[1718328062710,20.34,147.38,147.32,0.8342732]
[1718328062879,0.17,147.37,147.32,0.8342732]
[1718328063208,38.4456,147.36,147.32,0.8342732]
[1718328063696,20.51,147.35,147.32,0.8342732]
[1718328063897,120.51,147.35,147.32,0.8342732]
[1718328064721,20.51,147.35,147.32,0.8342732]
[1718328065006,20.17,147.35,147.32,0.8342732]
[1718328065373,0.17,147.34,147.32,0.8342732]
[1718328065574,6.6314,147.33,147.31,0.2]
[1718328065801,20.0,147.32,147.31,0.2]
[1718328066006,20.34,147.32,147.31,0.2]
[1718328068283,20.51,147.32,147.31,0.2]
[1718328071400,20.51,147.32,147.21,15.7348]
[1718328071605,23.2,147.3,147.21,0.2]
[1718328071777,20.17,147.29,147.21,0.2]
[1718328071984,45.17,147.28,147.21,0.2]
[1718328072289,20.17,147.27,147.21,0.2]
[1718328072501,0.17,147.26,147.21,0.2]
[1718328072903,0.17,147.27,147.21,0.2]
[1718328073077,0.51,147.27,147.21,0.2]
[1718328074001,20.0,147.29,147.21,0.2]
[1718328074218,0.51,147.28,147.21,0.2]
[1718328074806,0.51,147.28,147.21,2.7133]
[1718328075529,15.492,147.31,147.21,0.2]
[1718328075703,15.492,147.31,147.25,2.5126]
[1718328076020,15.492,147.31,147.21,2.7133]
[1718328076429,15.492,147.31,147.21,0.2]
[1718328076724,15.492,147.31,147.21,2.7133]
[1718328076909,20.0,147.3,147.21,0.2]
[1718328077311,20.0,147.3,147.24,2.5128]
[1718328077508,20.0,147.3,147.22,2.5131]
[1718328078207,20.0,147.3,147.21,2.7133]
[1718328078411,0.51,147.29,147.21,2.7133]
[1718328078618,20.0,147.3,147.25,2.5126]
[1718328080230,20.0,147.3,147.24,47.5128]
[1718328081016,20.0,147.3,147.25,2.5127]
[1718328081453,20.0,147.3,147.24,47.5128]
[1718328081741,20.0,147.3,147.21,22.8196]
[1718328081742,20.0,147.3,147.23,2.5129]
[1718328082738,20.0,147.3,147.22,45.0]
[1718328083237,20.0,147.3,147.22,52.5396]
[1718328083453,29.8314,147.33,147.25,5.0254]
[1718328083454,6.6314,147.33,147.25,5.0254]
[1718328083743,253.1,147.39,147.28,2.5121]
[1718328083744,15.1832,147.35,147.28,2.5121]
[1718328083910,15.1832,147.35,147.3,2.5118]
[1718328084230,15.1832,147.35,147.27,2.5123]
[1718328085334,20.0,147.34,147.27,2.5123]
[1718328085706,20.0,147.34,147.26,47.5124]
[1718328085921,20.0,147.34,147.25,47.5126]
[1718328086120,20.0,147.34,147.23,15.0781]
[1718328086121,0.51,147.33,147.23,2.5129]
[1718328086322,6.4084,147.32,147.23,2.5129]
[1718328086531,20.17,147.31,147.23,2.5129]
[1718328086738,20.51,147.31,147.23,2.5129]
[1718328087445,20.51,147.31,147.24,2.5128]
[1718328088010,20.51,147.31,147.23,2.513]
[1718328088209,20.51,147.31,147.22,2.5132]
[1718328090134,15.6532,147.3,147.22,2.5132]
[1718328090311,20.0,147.29,147.22,2.5132]
[1718328090739,20.0,147.29,147.23,2.513]
[1718328091724,20.0,147.29,147.23,2.5129]
[1718328092751,20.0,147.29,147.24,2.5128]
[1718328093255,15.6532,147.3,147.23,12.5651]
[1718328093419,15.6532,147.3,147.26,2.5124]
[1718328094740,15.6532,147.3,147.24,45.0]
[1718328094937,15.6532,147.3,147.21,12.9364]
[1718328095143,15.6532,147.3,147.24,2.5128]
[1718328096929,15.6532,147.3,147.25,2.5127]
[1718328097857,15.6532,147.3,147.24,2.5128]
[1718328098731,15.6532,147.3,147.25,2.5127]
[1718328098930,15.6532,147.3,147.26,2.5125]
[1718328099641,15.6532,147.3,147.25,2.5126]
[1718328099835,15.6532,147.3,147.24,45.0]
[1718328100042,15.6532,147.3,147.25,2.5126]
[1718328100265,15.6532,147.3,147.24,47.5128]
[1718328100470,15.6532,147.3,147.21,0.2]
[1718328100625,20.0,147.29,147.23,2.513]
[1718328100826,20.0,147.29,147.21,45.2]
[1718328100827,20.0,147.29,147.24,2.5129]
[1718328102044,20.0,147.29,147.23,2.5129]
[1718328103988,20.0,147.29,147.22,2.5131]
[1718328104285,20.0,147.29,147.21,47.7133]
[1718328104478,20.0,147.29,147.22,2.5132]
[1718328104662,20.0,147.29,147.21,47.7133]
[1718328105754,20.0,147.29,147.21,0.2]
[1718328106085,6.1066,147.27,147.21,0.2]
[1718328109562,0.34,147.26,147.21,0.2]
[1718328109984,6.1066,147.27,147.21,0.2]
[1718328111082,6.1066,147.27,147.23,2.513]
[1718328111969,6.1066,147.27,147.22,2.5131]
[1718328112894,15.6532,147.3,147.24,2.5128]
[1718328113292,15.6532,147.3,147.23,2.5129]
[1718328114399,15.6532,147.3,147.24,2.5128]
[1718328114692,15.6532,147.3,147.22,0.17]
[1718328114903,6.4746,147.31,147.27,2.5122]
[1718328115284,6.4746,147.31,147.26,45.0]
[1718328115477,6.4746,147.31,147.24,2.5128]
[1718328115990,6.4746,147.31,147.25,2.5127]
[1718328116164,6.4746,147.31,147.26,2.5125]
[1718328117270,6.4746,147.31,147.23,50.0259]
[1718328117271,6.4746,147.31,147.27,2.5123]
[1718328117496,6.4746,147.31,147.26,2.5124]
[1718328119074,6.4746,147.31,147.28,2.5121]
[1718328119274,6.4746,147.31,147.26,5.195]
[1718328119477,6.4746,147.31,147.28,2.5121]
[1718328119687,15.6305,147.34,147.28,2.5121]
[1718328120174,15.6305,147.34,147.27,47.5123]
[1718328120399,15.6305,147.34,147.23,23.2]
[1718328120606,0.17,147.33,147.25,2.5127]
[1718328121576,0.17,147.33,147.24,65.0]
[1718328121577,0.17,147.33,147.26,2.5125]
[1718328121908,15.6305,147.34,147.28,2.5121]
[1718328122077,15.6305,147.34,147.26,5.025]
[1718328122278,15.6305,147.34,147.28,2.5121]
[1718328122799,15.6305,147.34,147.29,2.512]
[1718328123405,15.6305,147.34,147.27,45.17]
[1718328123591,253.1,147.39,147.31,0.17]
[1718328123592,16.5811,147.38,147.31,0.17]
[1718328123906,16.5811,147.38,147.28,22.08064979]
[1718328124105,16.5811,147.38,147.29,47.5119]
[1718328125190,0.17,147.37,147.29,47.5119]
[1718328125400,16.5811,147.38,147.3,0.17]
[1718328125719,16.5811,147.38,147.32,2.5114]
[1718328126018,16.5811,147.38,147.31,2.5117]
[1718328126609,16.5811,147.38,147.29,50.0239]
[1718328126610,20.0,147.37,147.29,45.0]
[1718328126789,0.17,147.36,147.29,45.0]
[1718328127382,20.0,147.37,147.29,45.0]
[1718328127734,0.17,147.36,147.3,2.5118]
[1718328128007,20.0,147.37,147.32,2.5115]
[1718328128901,27.74,147.37,147.32,10.2515]
[1718328129625,20.0,147.37,147.32,10.2515]
[1718328129832,27.74,147.37,147.32,10.2515]
[1718328130111,27.74,147.37,147.32,7.74]
[1718328130313,27.74,147.37,147.31,2.5116]
[1718328130510,27.74,147.37,147.31,10.2516]
[1718328130818,27.74,147.37,147.32,45.0]
[1718328131612,16.5811,147.38,147.34,7.74]
[1718328131778,253.1,147.39,147.37,10.2506]
[1718328131986,253.1,147.39,147.38,55.2505]
[1718328132883,253.1,147.39,147.38,47.5105]
[1718328133333,22.3147,147.42,147.39,2.5103]
[1718328133493,15.1122,147.45,147.39,20.17]
[1718328133694,15.1122,147.45,147.41,2.5099]
[1718328134283,15.1122,147.45,147.4,47.51]
[1718328134719,15.1122,147.45,147.36,23.2]
[1718328134895,15.1122,147.45,147.33,28.2223]
[1718328135101,15.1122,147.45,147.34,20.0]
[1718328135102,0.17,147.44,147.34,20.0]
[1718328135309,0.17,147.44,147.35,2.5109]
[1718328135896,0.17,147.44,147.36,2.5108]
[1718328136316,15.1122,147.45,147.37,2.5106]
[1718328136804,15.1122,147.45,147.37,47.5106]
[1718328137693,15.1122,147.45,147.38,2.5105]
[1718328137915,15.1122,147.45,147.39,2.5102]
[1718328138407,15.1122,147.45,147.39,47.5102]
[1718328138792,15.1122,147.45,147.39,45.0]
[1718328139022,20.0,147.44,147.32,10.36959544]
[1718328139199,20.34,147.44,147.34,2.511]
[1718328139828,20.34,147.44,147.33,1.57011675]
[1718328139829,20.17,147.44,147.37,2.5106]
[1718328140318,20.0,147.44,147.37,2.5106]
[1718328140522,20.0,147.44,147.36,2.5107]
[1718328140826,20.0,147.44,147.33,1.57011675]
[1718328141010,0.51,147.43,147.33,1.57011675]
[1718328141395,0.34,147.43,147.35,2.5109]
[1718328143105,20.0,147.44,147.37,2.5106]
[1718328143303,15.1122,147.45,147.39,2.5103]
[1718328143523,15.1122,147.45,147.36,2.5107]
[1718328143699,15.1122,147.45,147.36,47.5107]
[1718328144634,15.1122,147.45,147.36,45.0]
[1718328144635,0.17,147.44,147.36,45.0]
[1718328144931,20.34,147.44,147.36,45.0]
[1718328145751,20.34,147.44,147.36,47.5108]
[1718328146246,6.4723,147.43,147.33,1.57011675]
[1718328146421,35.2384,147.42,147.33,2.5112]
[1718328147301,35.2384,147.42,147.32,20.0]
[1718328147517,35.0684,147.42,147.35,2.5108]
[1718328147822,15.0684,147.42,147.3,30.7353]
[1718328147996,22.9998,147.4,147.27,28.2246]
[1718328148339,22.9998,147.4,147.29,2.5119]
[1718328148542,22.9998,147.4,147.3,2.5118]
[1718328148543,20.51,147.39,147.3,2.5118]